﻿Department family,Entity,Date,Expense type,Expense area,Supplier,Transaction number,Amount,Description,Supplier Postcode,DA
Families & Specialist Services,Radiology,30/09/2022,Contractual Clinical Services,Rad General,4 Ways Healthcare Ltd,4WHC/05232505,"32,446.07 ",Outsourcied teleradiology reporting,HP2 7BF,
Pmu,Pmu,02/09/2022,Drugs,Pmu,Alliance Healthcare Distribution Ltd,F28454513,"68,169.60 ",Pharmaceutical Purchase,KT9 1SN,
Balance Sheet,L2 Current Assets,09/09/2022,Finished Processed Goods,Stock & Work In Progress,Alliance Healthcare Distribution Ltd,F28A54575,"54,535.68 ",Pharmaceutical Purchase,KT9 1SN,
Balance Sheet,L2 Current Assets,16/09/2022,Finished Processed Goods,Stock & Work In Progress,Alliance Healthcare Distribution Ltd,F28J53173,"40,901.76 ",Pharmaceutical Purchase,KT9 1SN,
Balance Sheet,L2 Current Assets,23/09/2022,Finished Processed Goods,Stock & Work In Progress,Alliance Healthcare Distribution Ltd,F28P52733,"54,923.58 ",Pharmaceutical Purchase,KT9 1SN,
Balance Sheet,L2 Current Assets,21/09/2022,Finished Processed Goods,Stock & Work In Progress,Alloga Uk Ltd,SCR100151879,"-72,000.00 ",Pharmaceutical Purchase,DE55 2FH,
Pmu,Pmu,02/09/2022,Drugs,Pmu,Alloga Uk Ltd,SIN103541132,"47,040.00 ",Pharmaceutical Purchase,DE55 2FH,
Pmu,Pmu,07/09/2022,Drugs,Pmu,Alloga Uk Ltd,SIN103543497,"47,040.00 ",Pharmaceutical Purchase,DE55 2FH,
Pmu,Pmu,30/09/2022,Drugs,Pmu,Alloga Uk Ltd,SIN103565851,"117,600.00 ",Pharmaceutical Purchase,DE55 2FH,
Corporate Services,Service Performance,23/09/2022,Contract : Other External,Properties,Amas Ltd,00310-202200100,"3,270.00",Broad St Plaza Service Charge 29/09/22 - 24/12/2022,E14 5WQ,
Balance Sheet,L2 Long Term Creditors,23/09/2022,Lease Liabilities under IFRS 16 > 1 year,Finance Leases,Amas Ltd,00310-202200100,"65,375.00",Broad St Plaza Rent 29/09/22 - 24/12/2022,E14 5WQ,
Balance Sheet,L2 Long Term Creditors,23/09/2022,Lease Liabilities under IFRS 16 > 1 year,Finance Leases,Assura Medical Centres Ltd,LINV49628,"29,100.00 ",Todmorden Part Second Floor - Rent 29/09/2022 24/12/2022,WA4 6HL,
Balance Sheet,L2 Current Assets,02/09/2022,Finished Processed Goods,Stock & Work In Progress,Bayer Plc,824C434653,"27,373.68 ",Pharmaceutical Purchase,RG2 6AD,
Balance Sheet,L2 Current Assets,09/09/2022,Finished Processed Goods,Stock & Work In Progress,Bayer Plc,824C435568,"27,373.68 ",Pharmaceutical Purchase,RG2 6AD,
Balance Sheet,L2 Current Assets,14/09/2022,Finished Processed Goods,Stock & Work In Progress,Bayer Plc,824C437746,"27,373.68 ",Pharmaceutical Purchase,RG2 6AD,
Balance Sheet,L2 Current Assets,21/09/2022,Finished Processed Goods,Stock & Work In Progress,Bayer Plc,824C438794,"114,057.00 ",Pharmaceutical Purchase,RG2 6AD,
Balance Sheet,L2 Current Assets,21/09/2022,Finished Processed Goods,Stock & Work In Progress,Bayer Plc,824C438795,"27,373.68 ",Pharmaceutical Purchase,RG2 6AD,
Families & Specialist Services,Pathology,02/09/2022,Laboratory Test Kits,Microbiology,Becton Dickinson UK Ltd,220071848,"31,216.70 ",laboratory Managed Service Contract (non-CoVID),RG41 5TS,
Families & Specialist Services,Pathology,21/09/2022,Laboratory Test Kits,Microbiology,Becton Dickinson UK Ltd,220077988,"27,862.83 ",laboratory Managed Service Contract (non-CoVID),RG41 5TS,
Families & Specialist Services,Radiology,23/09/2022,Computer Software / License  Fees,Rad General,Behold.ai Technologies Ltd,1033,"108,000.00 ",Artificial Intelligence (AI) CXR (40K) & CT(50k) per Year 1. For licences ,TN39 5ES,
Surgery & Anaesthetics,Surgical Divisional Support,21/09/2022,Contractual Clinical Services,Independent Sector,Bmi Healthcare Ltd,S5712JUN22,"121,197.09 ",Provision of Elective Activity on behalf of CHFT,SK3 0XN,
Surgery & Anaesthetics,Surgical Divisional Support,23/09/2022,Healthcare From Commercial Sector,Elective Recovery,Calderdale And Huddersfield Orthopaedic Partnership Llp,INV-0049,"75,000.00 ",Provision of Orthopaedic and/or Specialty Healthcare Services,LS8 2JH,
Surgery & Anaesthetics,Surgical Divisional Support,30/09/2022,Healthcare From Independent Sector,Elective Recovery,Calderdale And Huddersfield Orthopaedic Partnership Llp,INV-0050,"75,000.00 ",Provision of Orthopaedic and/or Specialty Healthcare Services,LS8 2JH,
Corporate Services,Service Performance,21/09/2022,Contract : Other External,Pfi,Calderdale Hospital Spc Ltd,3681,"3,048,419.56 ",PFI contract monthly payment,M20 2YY,
Corporate Services,Service Performance,14/09/2022,External Contracts : Catering,Pfi,Calderdale Hospital Spc Ltd,3682,"54,908.42 ",Additional Variatoins,M20 2YY,
Corporate Services,Service Performance,14/09/2022,Minor Works,Pfi,Calderdale Hospital Spc Ltd,3685,"25,182.17 ",New Works Instructions,M20 2YY,
Corporate Services,Service Performance,14/09/2022,Minor Works,Pfi,Calderdale Hospital Spc Ltd,3687,"105,053.17 ",Calderdale LED Ligting Project,M20 2YY,
CHS Facilities,L2 Facilities,09/09/2022,Home Loans,Equipment Loan,Calderdale Metropolitan Borough Council,IN2209081X,"77,160.00 ",Home Loan Contribution from CHFT to Calderdale Council for the provision of Health equipment for Calderdale Loan stores 01/04/2022-31/03/23,HX1 1TP,
Corporate Services,Service Performance,30/09/2022,Rates,Properties,Calderdale Metropolitan Borough Council,25202291017616,"73,387.00 ","Business rates for Calderdale Royal Hospital invoice 25202291017616	",HX1 1TP,
Corporate Services,Corporate Services,05/09/2022,Professional Fees,Corporate Services,Care Quality Commission,43126754,"30,805.40 ",Annual Fee in 10 installments 30805.40 each,WF3 1WE,
Health Informatics,Modernisation Programme,16/09/2022,Computer Software / License  Fees,Modernisation Programme,Cerner Ltd,102056556,"25,599.60 ",CCN 068 - CHNF_UK HealtheLife Clipboard Consulting total Professional Services Charges for this CCN068 are £21333,W2 1AF,
Health Informatics,Modernisation Programme,30/09/2022,Computer Software / License  Fees,Modernisation Programme,Cerner Ltd,102122488,"63,112.80 ",Cerner - Table 12: RHO Recurring Charges. Monthly commencing from the Effective Date and continuing until the end of the Term £52594 per month x 12 for 2022,W2 1AF,
Health Informatics,Modernisation Programme,30/09/2022,Computer Software / License  Fees,Modernisation Programme,Cerner Ltd,102122576,"38,400.00 ",Cerner CCN053 Nuance Dragon Medical Once Speech recognition. monthly recurring charge £32000. x 12 for 2022. to link to order rwyf400053037,W2 1AF,
Balance Sheet,L2 Long Term Creditors,09/09/2022,Lease Liabilities under IFRS 16 > 1 year,Finance Leases,Chg-Meridian Uk Ltd,7086084,"51,092.27 ",LP00244 7 year Lease- rLP00244. Lease Schedule No 6006769.Master lease Agreement number 307769 TIL 11/09/2023,TW20 9AB,
Health Informatics,Corporate And Operations,16/09/2022,Computer Network Costs,It Support,Cisilion Ltd,INVUK0015200,"130,922.52 ",Maintenance renewal and co-term to 22nd Jan 25 as per agreed inventory,KT22 9UT,
Balance Sheet,Fixed Assets,07/09/2022,Additions - Assets Under Construction,CAPITAL (Reconfig CRH),Darwin Group Limited,BOS4328,"88,592.04 ",CRH MODULAR LEARNING CENTRE - COMMENCEMENT OF PRE CONSTRUCTION DESIGN WORKS ,SY4 4EA,
Families & Specialist Services,Radiology,16/09/2022,Contractual Clinical Services,Rad General,Dmc Imaging Ltd,HF/22-23/3,"27,572.05 ",Outsourcing for reporting teleradiology ,SE15 1PD,
CHS Estates,L2 Estates,21/09/2022,Electricity,Estates Operations,EDF Energy Customers Ltd,000013142411,"255,921.23 ",Mains Gas Calderdale,W1T 4EZ,
Pmu,Pmu,23/09/2022,External Consultancy Fees,Pmu,Equinox Clinical Trial Services Ltd,INV-0003,"27,600.00 ",CLINICAL TRIAL SERVICES KETAMINE STAGE 34&5 - REGULATORY WORK,N1 7GU,
Families & Specialist Services,Radiology,07/09/2022,Imaging Equipment Purchases,Ultrasound,Fujifilm Healthcare UK Limited,9061007737,"79,999.99 ",Arietta 850 SE Ultrasound machine for Transperineal prostate biopsies plus Transrectal transperineal abdominal and linear probes,NN8 6XX,
Families & Specialist Services,Radiology,14/09/2022,Imaging Equipment Maintenance,Rad General,Ge Medical Systems Ltd,124D964,"33,729.61 ",TUBEVARRAD14 0612,M33 2HG,
Balance Sheet,Fixed Assets,01/10/2022,Additions - Assets Under Construction,Capital (Pmu),Getinge Limited,3129142032,"69,837.40 ",Autoclave 2 - Controls and mechanical upgrade,NE35 9PZ,
Balance Sheet,Fixed Assets,01/10/2022,Additions - Assets Under Construction,Capital (Pmu),Getinge Limited,3129142033,"71,144.95 ",Autoclave 1 - Controls and mechanical upgrade ,NE35 9PZ,
Balance Sheet,Fixed Assets,01/10/2022,Additions - Assets Under Construction,Capital (Pmu),Getinge Limited,3129142035,"139,674.80 ",Autoclave 2 - Controls and mechanical upgrade,NE35 9PZ,
Balance Sheet,Fixed Assets,01/10/2022,Additions - Assets Under Construction,Capital (Pmu),Getinge Limited,3129142036,"142,289.87 ",Autoclave 1 - Controls and mechanical upgrade ,NE35 9PZ,
Medical Division,Medical Divisional Management,23/09/2022,Contractual Clinical Services,Medical Divisional Management Support Services,Gutcare.Org Ltd,05,"30,431.00 ",Insourcing services to enable the recovery of Neurology Neurophysiology Rheumatology and Dermatology activity.,RM11 2EZ,
Health Informatics,Corporate And Operations,21/09/2022,Computer Network Costs,It Support,Hewlett-Packard International Bank Plc,400901318842,"95,664.79 ",Commvault renewal with Coolspirit - finance agreement,371607,
Medical Division,Emergency Medicine,02/09/2022,B5 Agency Nursing,A&E Nursing,Icare24 Ltd,INV33261A,"5,933.29 ",B5 Agency Nursing,B16 8QG,
Medical Division,Medical Specialities,02/09/2022,B5 Agency Nursing,Cardiology,Icare24 Ltd,INV33261A,563.42 ,B5 Agency Nursing,B16 8QG,
Corporate Services,Central Operations Team CORP,02/09/2022,B5 Agency Nursing,Central Operations Team CORP,Icare24 Ltd,INV33261A,"2,330.54 ",B5 Agency Nursing,B16 8QG,
Surgery & Anaesthetics,Head & Neck,02/09/2022,B5 Agency Nursing,Ent,Icare24 Ltd,INV33261A,567.41 ,B5 Agency Nursing,B16 8QG,
Medical Division,Acute Medical,02/09/2022,B5 Agency Nursing,General Medicine,Icare24 Ltd,INV33261A,"3,342.08 ",B5 Agency Nursing,B16 8QG,
Surgery & Anaesthetics,General Surgery,02/09/2022,B5 Agency Nursing,General Surgery,Icare24 Ltd,INV33261A,"4,034.79 ",B5 Agency Nursing,B16 8QG,
Medical Division,Acute Medical,02/09/2022,B5 Agency Nursing,Geriatric Medicine,Icare24 Ltd,INV33261A,"6,625.85 ",B5 Agency Nursing,B16 8QG,
Medical Division,Integrated Medical Specialities,02/09/2022,B5 Agency Nursing,Ims Stroke / Rehabilitation,Icare24 Ltd,INV33261A,543.84 ,B5 Agency Nursing,B16 8QG,
Surgery & Anaesthetics,Operating Services,02/09/2022,B5 Agency Nursing,Operating Services,Icare24 Ltd,INV33261A,3456.95,B5 Agency Nursing,B16 8QG,
Medical Division,Medical Specialities,02/09/2022,B5 Agency Nursing,Respiratory,Icare24 Ltd,INV33261A,2199.45,B5 Agency Nursing,B16 8QG,
Surgery & Anaesthetics,Orthopaedics,02/09/2022,B5 Agency Nursing,Trauma & Orthopaedics,Icare24 Ltd,INV33261A,600.88,B5 Agency Nursing,B16 8QG,
Medical Division,Acute Medical,30/09/2022,Pbr Excluded Devices (Pass Through),Diabetes Endocrinology,Insulet International Ltd,72075361,"31,344.24 ",diabetes consumables,W6 9HR,
Balance Sheet,Fixed Assets,23/09/2022,Additions - Assets Under Construction,CAPITAL (Reconfig HRI),Integrated Health Projects,22090029,"599,009.99 ",Emergency Department - STAGE 3 & 4 GMP SUBMISSION FOR THE DELIVERY OF A NEW ACCIDENT AND EMERGENCY BUILD AT THE HUDDERSFIELD ROYAL INFIRMARY ,WD24 4WW,
Estates & Facilities,Estates,02/09/2022,Rates,Estates Operations,Kirklees Council,969286425_2022,"43,093.00 ","business rates for Huddersfield Royal Infirmary invoice 969286425_2022	",HD1 2NF,
Families & Specialist Services,Pharmacy,16/09/2022,Healthcare From Commercial Sector,Pharm Gen,L Rowland & Company (Retail) Ltd,1800000961,"774,153.85 ",Year 3 of 5- Rowlands Outpatient Pharmacy Contract. Projected medicines costs (period 18May22- 17May23). Payment terms as per contract (equal monthly in arrears),WA7 3DJ,
Families & Specialist Services,Pharmacy,16/09/2022,Healthcare From Commercial Sector,Pharm Gen,L Rowland & Company (Retail) Ltd,1800000961,"95,044.67",Year 3 of 5- Rowlands Outpatient Pharmacy contract DISPENSING FEE (period 18May22 to 17May23)Payment terms- as per contract equal monthly in arrears,WA7 3DJ,
Recharges,Recharges,16/09/2022,Healthcare From NHS Trusts,Recharges,Mid Yorkshire Hospitals NHS Trust,1600020912,"52,918.00 ",Various services provided by agreement as per West Yorkshire Association of Acute Trusts agreed methodology,WF1 4DG,
Families & Specialist Services,Pathology,15/09/2022,Blood Products,Blood Sciences,NHS Blood And Transplant,7007624,"85,109.73 ",MONTHLY CONTRACT CHARGE BLOOD & COMPONENTS,LS15 7TW,
Families & Specialist Services,Pathology,15/09/2022,Blood Products,Blood Sciences,NHS Blood And Transplant,7007625,"32,812.05 ",MONTHLY CONTRACT CHARGE BLOOD & COMPONENTS,LS15 7TW,
Corporate Services,Quality,15/09/2022,Clinical Negligence,Quality,NHS Resolution,SICX409957,"791,186.30 ",Clinical Negligence provision,SW1W 9SZ,
Families & Specialist Services,Womens,15/09/2022,Clinical Negligence,Womens Management,NHS Resolution,SICX409957,"857,768.00 ",Clinical Negligence provision,SW1W 9SZ,
Corporate Services,Quality,15/09/2022,Insurance Costs,Quality,NHS Resolution,SICX409957,"20,850.40 ",Clinical Negligence provision,SW1W 9SZ,
CHS Balance Sheet,Current Liabilities,02/09/2022,Non- NHS  Trade Creditors < One Year,Other Creditors,NHS Supply Chain,1123097029,"252,965.28 ",Goods delivered week ending 05/08/2022,DE55 4QJ,
CHS Balance Sheet,Current Liabilities,09/09/2022,Non- NHS  Trade Creditors < One Year,Other Creditors,NHS Supply Chain,1123101631,"227,739.59 ",Goods delivered week ending 12/08/2022,DE55 4QJ,
CHS Balance Sheet,Current Liabilities,16/09/2022,Non- NHS  Trade Creditors < One Year,Other Creditors,NHS Supply Chain,1123107249,"239,188.72 ",Goods delivered week ending 19/08/2022,DE55 4QJ,
CHS Balance Sheet,Current Liabilities,23/09/2022,Non- NHS  Trade Creditors < One Year,Other Creditors,NHS Supply Chain,1123114913,"235,273.26 ",Goods delivered week ending 26/08/2022,DE55 4QJ,
CHS Balance Sheet,Current Liabilities,30/09/2022,Non- NHS  Trade Creditors < One Year,Other Creditors,NHS Supply Chain,1123120149,"228,561.13 ",Goods delivered week ending 02/09/2022,DE55 4QJ,
Balance Sheet,Fixed Assets,30/09/2022,Additions - Assets Under Construction,Capital (Surgical),NHS Supply Chain,9523000859,"32,553.36 ",Berchtold Table for theatres,DE55 4QJ,
CHS Estates,L2 Estates,23/09/2022,Med Surg Eqpt Mtce Contracts,Management Estates,NHS Supply Chain - Maintenance,2123003691,"33,203.06 ",Fully Comprehensive Maintenance for Kodak DV DR7500 System and associated components. Agreement Commencing - 1st September 2022 - 31st August 2023,DE55 4QJ,
CHS Estates,L2 Estates,23/09/2022,Med Surg Eqpt Mtce Contracts,Management Estates,NHS Supply Chain - Maintenance,2123003692,"43,017.88 ",1 of 5 Year Performance TOP Maintenance for Artis Zee MP. Agreement Commencing - 1st September 2022 - 31st August 2023,DE55 4QJ,
CHS Estates,L2 Estates,30/09/2022,Med Surg Eqpt Mtce Contracts,Management Estates,NHS Supply Chain - Maintenance,2123003820,"28,023.60 ",Silver Maintenance for Alcon Infiniti Vision phacoemulsifier Systems - .Agreement Commencing - 1st October 2022 - 30th September 2023,DE55 4QJ,
Balance Sheet,L2 Current Assets,02/09/2022,Finished Processed Goods,Stock & Work In Progress,Novartis Pharmaceuticals Uk Ltd,92645204,"42,201.60 ",Pharmaceutical Purchase,GU16 7SR,
Balance Sheet,L2 Current Assets,07/09/2022,Finished Processed Goods,Stock & Work In Progress,Novartis Pharmaceuticals Uk Ltd,92647478,"42,201.60 ",Pharmaceutical Purchase,GU16 7SR,
Balance Sheet,L2 Current Assets,07/09/2022,Finished Processed Goods,Stock & Work In Progress,Novartis Pharmaceuticals Uk Ltd,92647968,"42,201.60 ",Pharmaceutical Purchase,GU16 7SR,
Balance Sheet,L2 Current Assets,23/09/2022,Finished Processed Goods,Stock & Work In Progress,Novartis Pharmaceuticals Uk Ltd,92656259,"42,201.60 ",Pharmaceutical Purchase,W12 7FQ,
Balance Sheet,L2 Current Assets,30/09/2022,Finished Processed Goods,Stock & Work In Progress,Novartis Pharmaceuticals Uk Ltd,92659146,"42,201.60 ",Pharmaceutical Purchase,GU16 7SR,
Surgery & Anaesthetics,Surgical Divisional Support,02/09/2022,Healthcare From Commercial Sector,Support Services,Omnes Healthcare Ltd,CALJUL22,"67,002.29 ",Insouring Outpatient Capacity - ENT,SE22 8EY,
Balance Sheet,Fixed Assets,30/09/2022,Additions - Assets Under Construction,Capital (His),Omnicell Ltd,0000009349,"45,432.79 ",OMNICELL XT- CRH MAJORS OMNICELL THREE CELL XT CABINET + TWO CELL XT AUXILIARY CABINET,M44 5GR,
CHS Estates,L2 Estates,16/09/2022,Electricity,Estates Operations,Opus Energy Ltd,41930655,"101,615.58 ",Mains electricity HRI,"YO8 8PH	",
Corporate Services,Service Performance,21/09/2022,Contract : Other External,Properties,Pennine Property Partnership Llp,SI0000022,"48,516.60 ",Acre Mill Outpatients Service charge recharge - August 2022,S11 9PD,
Balance Sheet,L2 Long Term Creditors,23/09/2022,Lease Liabilities under IFRS 16 > 1 year,Finance Leases,Pennine Property Partnership Llp,SI0000023,"227,979.60 ",Acre Mill Outpatients Rent - 25/09/2022 - 24/12/2022,S11 9PD,
Surgery & Anaesthetics,Surgical Divisional Support,23/09/2022,Healthcare From Commercial Sector,Support Services,Pioneer Healthcare Ltd,16,"34,160.00 ",Insourcing Services ,S10 5UB,
Medical Division,Emergency Medicine,14/09/2022,B5 Agency Nursing,A&E Nursing,Red Group Personnel Ltd,928CALD,9144.17,B5 Agency Nursing,HA3 5AB,
Corporate Services,Central Operations Team CORP,14/09/2022,B5 Agency Nursing,Central Operations Team CORP,Red Group Personnel Ltd,928CALD,1651.52,B5 Agency Nursing,HA3 5AB,
Medical Division,Medical Specialities,14/09/2022,B5 Agency Nursing,Gastroenterology,Red Group Personnel Ltd,928CALD,1794.08,B5 Agency Nursing,HA3 5AB,
Medical Division,Acute Medical,14/09/2022,B5 Agency Nursing,General Medicine,Red Group Personnel Ltd,928CALD,11659.72,B5 Agency Nursing,HA3 5AB,
Surgery & Anaesthetics,General Surgery,14/09/2022,B5 Agency Nursing,General Surgery,Red Group Personnel Ltd,928CALD,1356.94,B5 Agency Nursing,HA3 5AB,
Medical Division,Acute Medical,14/09/2022,B5 Agency Nursing,Geriatric Medicine,Red Group Personnel Ltd,928CALD,3042.55,B5 Agency Nursing,HA3 5AB,
Medical Division,Integrated Medical Specialities,14/09/2022,B5 Agency Nursing,Ims Stroke / Rehabilitation,Red Group Personnel Ltd,928CALD,1172.47,B5 Agency Nursing,HA3 5AB,
Medical Division,Integrated Medical Specialities,14/09/2022,B5 Agency Nursing,Medical Oncology,Red Group Personnel Ltd,928CALD,796.2,B5 Agency Nursing,HA3 5AB,
Surgery & Anaesthetics,Operating Services,14/09/2022,B5 Agency Nursing,Operating Services,Red Group Personnel Ltd,928CALD,4827.9,B5 Agency Nursing,HA3 5AB,
Medical Division,Medical Specialities,14/09/2022,B5 Agency Nursing,Respiratory,Red Group Personnel Ltd,928CALD,8792.42,B5 Agency Nursing,HA3 5AB,
Surgery & Anaesthetics,Orthopaedics,14/09/2022,B5 Agency Nursing,Trauma & Orthopaedics,Red Group Personnel Ltd,928CALD,698.11,B5 Agency Nursing,HA3 5AB,
Medical Division,Emergency Medicine,14/09/2022,B5 Agency Nursing,A&E Nursing,Red Group Personnel Ltd,929CALD,6992.01,B5 Agency Nursing,HA3 5AB,
Corporate Services,Central Operations Team CORP,14/09/2022,B5 Agency Nursing,Central Operations Team CORP,Red Group Personnel Ltd,929CALD,1265.09,B5 Agency Nursing,HA3 5AB,
Surgery & Anaesthetics,Head & Neck,14/09/2022,B5 Agency Nursing,Ent,Red Group Personnel Ltd,929CALD,621.97,B5 Agency Nursing,HA3 5AB,
Medical Division,Medical Specialities,14/09/2022,B5 Agency Nursing,Gastroenterology,Red Group Personnel Ltd,929CALD,1207.97,B5 Agency Nursing,HA3 5AB,
Medical Division,Acute Medical,14/09/2022,B5 Agency Nursing,General Medicine,Red Group Personnel Ltd,929CALD,10290.94,B5 Agency Nursing,HA3 5AB,
Surgery & Anaesthetics,General Surgery,14/09/2022,B5 Agency Nursing,General Surgery,Red Group Personnel Ltd,929CALD,3773.35,B5 Agency Nursing,HA3 5AB,
Medical Division,Acute Medical,14/09/2022,B5 Agency Nursing,Geriatric Medicine,Red Group Personnel Ltd,929CALD,3651.14,B5 Agency Nursing,HA3 5AB,
Medical Division,Integrated Medical Specialities,14/09/2022,B5 Agency Nursing,Ims Stroke / Rehabilitation,Red Group Personnel Ltd,929CALD,3557.86,B5 Agency Nursing,HA3 5AB,
Medical Division,Integrated Medical Specialities,14/09/2022,B5 Agency Nursing,Medical Oncology,Red Group Personnel Ltd,929CALD,1333.08,B5 Agency Nursing,HA3 5AB,
Surgery & Anaesthetics,Operating Services,14/09/2022,B5 Agency Nursing,Operating Services,Red Group Personnel Ltd,929CALD,5530.14,B5 Agency Nursing,HA3 5AB,
Medical Division,Medical Specialities,14/09/2022,B5 Agency Nursing,Respiratory,Red Group Personnel Ltd,929CALD,8289.35,B5 Agency Nursing,HA3 5AB,
Surgery & Anaesthetics,Orthopaedics,14/09/2022,B5 Agency Nursing,Trauma & Orthopaedics,Red Group Personnel Ltd,929CALD,633.88,B5 Agency Nursing,HA3 5AB,
Medical Division,Emergency Medicine,14/09/2022,B5 Agency Nursing,A&E Nursing,Red Group Personnel Ltd,930CALD,5376.82,B5 Agency Nursing,HA3 5AB,
Corporate Services,Central Operations Team CORP,14/09/2022,B5 Agency Nursing,Central Operations Team CORP,Red Group Personnel Ltd,930CALD,666.96,B5 Agency Nursing,HA3 5AB,
Surgery & Anaesthetics,Head & Neck,14/09/2022,B5 Agency Nursing,Ent,Red Group Personnel Ltd,930CALD,621.97,B5 Agency Nursing,HA3 5AB,
Medical Division,Medical Specialities,14/09/2022,B5 Agency Nursing,Gastroenterology,Red Group Personnel Ltd,930CALD,359.03,B5 Agency Nursing,HA3 5AB,
Medical Division,Acute Medical,14/09/2022,B5 Agency Nursing,General Medicine,Red Group Personnel Ltd,930CALD,14079.21,B5 Agency Nursing,HA3 5AB,
Surgery & Anaesthetics,General Surgery,14/09/2022,B5 Agency Nursing,General Surgery,Red Group Personnel Ltd,930CALD,3270.77,B5 Agency Nursing,HA3 5AB,
Medical Division,Acute Medical,14/09/2022,B5 Agency Nursing,Geriatric Medicine,Red Group Personnel Ltd,930CALD,6353.21,B5 Agency Nursing,HA3 5AB,
Families & Specialist Services,Womens,14/09/2022,B5 Agency Nursing,Gynaecology,Red Group Personnel Ltd,930CALD,672.98,B5 Agency Nursing,HA3 5AB,
Medical Division,Integrated Medical Specialities,14/09/2022,B5 Agency Nursing,Ims Stroke / Rehabilitation,Red Group Personnel Ltd,930CALD,598.03,B5 Agency Nursing,HA3 5AB,
Medical Division,Integrated Medical Specialities,14/09/2022,B5 Agency Nursing,Medical Oncology,Red Group Personnel Ltd,930CALD,574.44,B5 Agency Nursing,HA3 5AB,
Surgery & Anaesthetics,Operating Services,14/09/2022,B5 Agency Nursing,Operating Services,Red Group Personnel Ltd,930CALD,4944.93,B5 Agency Nursing,HA3 5AB,
Medical Division,Medical Specialities,14/09/2022,B5 Agency Nursing,Respiratory,Red Group Personnel Ltd,930CALD,9048.44,B5 Agency Nursing,HA3 5AB,
Surgery & Anaesthetics,Orthopaedics,14/09/2022,B5 Agency Nursing,Trauma & Orthopaedics,Red Group Personnel Ltd,930CALD,1029.21,B5 Agency Nursing,HA3 5AB,
Medical Division,Emergency Medicine,14/09/2022,B5 Agency Nursing,A&E Nursing,Red Group Personnel Ltd,931CALD,9583.67,B5 Agency Nursing,HA3 5AB,
Medical Division,Medical Specialities,14/09/2022,B5 Agency Nursing,Gastroenterology,Red Group Personnel Ltd,931CALD,3031.97,B5 Agency Nursing,HA3 5AB,
Medical Division,Acute Medical,14/09/2022,B5 Agency Nursing,General Medicine,Red Group Personnel Ltd,931CALD,12027.65,B5 Agency Nursing,HA3 5AB,
Medical Division,Acute Medical,14/09/2022,B5 Agency Nursing,Geriatric Medicine,Red Group Personnel Ltd,931CALD,5094.94,B5 Agency Nursing,HA3 5AB,
Medical Division,Integrated Medical Specialities,14/09/2022,B5 Agency Nursing,Ims Stroke / Rehabilitation,Red Group Personnel Ltd,931CALD,3981.56,B5 Agency Nursing,HA3 5AB,
Surgery & Anaesthetics,Operating Services,14/09/2022,B5 Agency Nursing,Operating Services,Red Group Personnel Ltd,931CALD,4216.81,B5 Agency Nursing,HA3 5AB,
Medical Division,Medical Specialities,14/09/2022,B5 Agency Nursing,Respiratory,Red Group Personnel Ltd,931CALD,12479.06,B5 Agency Nursing,HA3 5AB,
Surgery & Anaesthetics,Orthopaedics,14/09/2022,B5 Agency Nursing,Trauma & Orthopaedics,Red Group Personnel Ltd,931CALD,2145.71,B5 Agency Nursing,HA3 5AB,
Medical Division,Emergency Medicine,14/09/2022,B5 Agency Nursing,A&E Nursing,Red Group Personnel Ltd,932CALD,8655.07,B5 Agency Nursing,HA3 5AB,
Corporate Services,Central Operations Team CORP,14/09/2022,B5 Agency Nursing,Central Operations Team CORP,Red Group Personnel Ltd,932CALD,736.92,B5 Agency Nursing,HA3 5AB,
Medical Division,Medical Specialities,14/09/2022,B5 Agency Nursing,Gastroenterology,Red Group Personnel Ltd,932CALD,2026.77,B5 Agency Nursing,HA3 5AB,
Medical Division,Acute Medical,14/09/2022,B5 Agency Nursing,General Medicine,Red Group Personnel Ltd,932CALD,10824.53,B5 Agency Nursing,HA3 5AB,
Surgery & Anaesthetics,General Surgery,14/09/2022,B5 Agency Nursing,General Surgery,Red Group Personnel Ltd,932CALD,727.03,B5 Agency Nursing,HA3 5AB,
Medical Division,Acute Medical,14/09/2022,B5 Agency Nursing,Geriatric Medicine,Red Group Personnel Ltd,932CALD,7593.46,B5 Agency Nursing,HA3 5AB,
Families & Specialist Services,Womens,14/09/2022,B5 Agency Nursing,Gynaecology,Red Group Personnel Ltd,932CALD,598.38,B5 Agency Nursing,HA3 5AB,
Medical Division,Integrated Medical Specialities,14/09/2022,B5 Agency Nursing,Ims Stroke / Rehabilitation,Red Group Personnel Ltd,932CALD,1723.32,B5 Agency Nursing,HA3 5AB,
Surgery & Anaesthetics,Operating Services,14/09/2022,B5 Agency Nursing,Operating Services,Red Group Personnel Ltd,932CALD,5676.44,B5 Agency Nursing,HA3 5AB,
Medical Division,Medical Specialities,14/09/2022,B5 Agency Nursing,Respiratory,Red Group Personnel Ltd,932CALD,3627.55,B5 Agency Nursing,HA3 5AB,
Surgery & Anaesthetics,Orthopaedics,14/09/2022,B5 Agency Nursing,Trauma & Orthopaedics,Red Group Personnel Ltd,932CALD,1924.28,B5 Agency Nursing,HA3 5AB,
Medical Division,Emergency Medicine,14/09/2022,B5 Agency Nursing,A&E Nursing,Red Group Personnel Ltd,933CALD,13399.58,B5 Agency Nursing,HA3 5AB,
Medical Division,Medical Specialities,14/09/2022,B5 Agency Nursing,Cardiology,Red Group Personnel Ltd,933CALD,1356.67,B5 Agency Nursing,HA3 5AB,
Surgery & Anaesthetics,Head & Neck,14/09/2022,B5 Agency Nursing,Ent,Red Group Personnel Ltd,933CALD,666.96,B5 Agency Nursing,HA3 5AB,
Medical Division,Medical Specialities,14/09/2022,B5 Agency Nursing,Gastroenterology,Red Group Personnel Ltd,933CALD,2153.11,B5 Agency Nursing,HA3 5AB,
Medical Division,Acute Medical,14/09/2022,B5 Agency Nursing,General Medicine,Red Group Personnel Ltd,933CALD,6562.4,B5 Agency Nursing,HA3 5AB,
Surgery & Anaesthetics,General Surgery,14/09/2022,B5 Agency Nursing,General Surgery,Red Group Personnel Ltd,933CALD,1255.01,B5 Agency Nursing,HA3 5AB,
Medical Division,Acute Medical,14/09/2022,B5 Agency Nursing,Geriatric Medicine,Red Group Personnel Ltd,933CALD,4394.91,B5 Agency Nursing,HA3 5AB,
Medical Division,Integrated Medical Specialities,14/09/2022,B5 Agency Nursing,Ims Stroke / Rehabilitation,Red Group Personnel Ltd,933CALD,1172.47,B5 Agency Nursing,HA3 5AB,
Surgery & Anaesthetics,Operating Services,14/09/2022,B5 Agency Nursing,Operating Services,Red Group Personnel Ltd,933CALD,4948.31,B5 Agency Nursing,HA3 5AB,
Medical Division,Medical Specialities,14/09/2022,B5 Agency Nursing,Respiratory,Red Group Personnel Ltd,933CALD,6217.78,B5 Agency Nursing,HA3 5AB,
Surgery & Anaesthetics,Orthopaedics,14/09/2022,B5 Agency Nursing,Trauma & Orthopaedics,Red Group Personnel Ltd,933CALD,1204.38,B5 Agency Nursing,HA3 5AB,
Medical Division,Emergency Medicine,16/09/2022,B5 Agency Nursing,A&E Nursing,Red Group Personnel Ltd,934CALD,8740.33,B5 Agency Nursing,HA3 5AB,
Medical Division,Medical Specialities,16/09/2022,B5 Agency Nursing,Cardiology,Red Group Personnel Ltd,934CALD,609.94,B5 Agency Nursing,HA3 5AB,
Surgery & Anaesthetics,Head & Neck,16/09/2022,B5 Agency Nursing,Ent,Red Group Personnel Ltd,934CALD,633.88,B5 Agency Nursing,HA3 5AB,
Medical Division,Medical Specialities,16/09/2022,B5 Agency Nursing,Gastroenterology,Red Group Personnel Ltd,934CALD,662.08,B5 Agency Nursing,HA3 5AB,
Medical Division,Acute Medical,16/09/2022,B5 Agency Nursing,General Medicine,Red Group Personnel Ltd,934CALD,6233.55,B5 Agency Nursing,HA3 5AB,
Surgery & Anaesthetics,General Surgery,16/09/2022,B5 Agency Nursing,General Surgery,Red Group Personnel Ltd,934CALD,2518.03,B5 Agency Nursing,HA3 5AB,
Medical Division,Acute Medical,16/09/2022,B5 Agency Nursing,Geriatric Medicine,Red Group Personnel Ltd,934CALD,1746.9,B5 Agency Nursing,HA3 5AB,
Families & Specialist Services,Womens,16/09/2022,B5 Agency Nursing,Gynaecology,Red Group Personnel Ltd,934CALD,672.98,B5 Agency Nursing,HA3 5AB,
Medical Division,Integrated Medical Specialities,16/09/2022,B5 Agency Nursing,Ims Stroke / Rehabilitation,Red Group Personnel Ltd,934CALD,4264.39,B5 Agency Nursing,HA3 5AB,
Surgery & Anaesthetics,Operating Services,16/09/2022,B5 Agency Nursing,Operating Services,Red Group Personnel Ltd,934CALD,5237.54,B5 Agency Nursing,HA3 5AB,
Medical Division,Medical Specialities,16/09/2022,B5 Agency Nursing,Respiratory,Red Group Personnel Ltd,934CALD,6088.4,B5 Agency Nursing,HA3 5AB,
Surgery & Anaesthetics,Orthopaedics,16/09/2022,B5 Agency Nursing,Trauma & Orthopaedics,Red Group Personnel Ltd,934CALD,866.42,B5 Agency Nursing,HA3 5AB,
Medical Division,Emergency Medicine,23/09/2022,B5 Agency Nursing,A&E Nursing,Red Group Personnel Ltd,935CALD,8381.75,B5 Agency Nursing,HA3 5AB,
Surgery & Anaesthetics,Head & Neck,23/09/2022,B5 Agency Nursing,Ent,Red Group Personnel Ltd,935CALD,1269.23,B5 Agency Nursing,HA3 5AB,
Medical Division,Acute Medical,23/09/2022,B5 Agency Nursing,General Medicine,Red Group Personnel Ltd,935CALD,11067.21,B5 Agency Nursing,HA3 5AB,
Surgery & Anaesthetics,General Surgery,23/09/2022,B5 Agency Nursing,General Surgery,Red Group Personnel Ltd,935CALD,4092.53,B5 Agency Nursing,HA3 5AB,
Medical Division,Acute Medical,23/09/2022,B5 Agency Nursing,Geriatric Medicine,Red Group Personnel Ltd,935CALD,3676.74,B5 Agency Nursing,HA3 5AB,
Families & Specialist Services,Womens,23/09/2022,B5 Agency Nursing,Gynaecology,Red Group Personnel Ltd,935CALD,689.66,B5 Agency Nursing,HA3 5AB,
Medical Division,Integrated Medical Specialities,23/09/2022,B5 Agency Nursing,Ims Stroke / Rehabilitation,Red Group Personnel Ltd,935CALD,6249.7,B5 Agency Nursing,HA3 5AB,
Surgery & Anaesthetics,Operating Services,23/09/2022,B5 Agency Nursing,Operating Services,Red Group Personnel Ltd,935CALD,7032.14,B5 Agency Nursing,HA3 5AB,
Medical Division,Medical Specialities,23/09/2022,B5 Agency Nursing,Respiratory,Red Group Personnel Ltd,935CALD,6402.82,B5 Agency Nursing,HA3 5AB,
Balance Sheet,L2 Current Assets,30/09/2022,Finished Processed Goods,Stock & Work In Progress,Roche Products Ltd,1322248676,"37,668.91 ",Pharmaceutical Purchase,AL7 1TW,
Balance Sheet,L2 Current Assets,30/09/2022,Finished Processed Goods,Stock & Work In Progress,Roche Products Ltd,1322249788,"30,357.12 ",Pharmaceutical Purchase,AL7 1TW,
Balance Sheet,L2 Current Assets,30/09/2022,Finished Processed Goods,Stock & Work In Progress,Roche Products Ltd,1322250623,"29,349.46 ",Pharmaceutical Purchase,AL7 1TW,
Families & Specialist Services,Pathology,09/09/2022,Laboratory Chemicals,Path Chemical Pathology,Siemens Healthcare Diagnostics Ltd,114725946,"156,629.44 ",Biochemistry managed Service Contract,GU16 8QD,
CHS Estates,L2 Estates,09/09/2022,Med Surg Eqpt Mtce Contracts,Maintenance & Leases,Softcat Plc,INVUK528808,"31,575.18 ",Annual Maintenance Renewal - Standard Support.Agreement Commencing - 29th April 2022 - 28th April 2023,SL7 1TB,
Community Division,Community Therapies,23/09/2022,Patients Appliances : Purchase,Patient Appliances,Taycare Medical Ltd,21479,"38,153.63 ",supply of specialist orthotic products,LS12 6LL,
Community Division,Community Therapies,23/09/2022,Patients Appliances : Purchase,Patient Appliances,Taycare Medical Ltd,21480,"32,916.22 ",supply of specialist orthotic products,LS12 6LL,
Families & Specialist Services,Radiology,23/09/2022,Contractual Clinical Services,Rad General,Telemedicine Clinic Ltd,20220211,"101,342.58 ",Outsourcing of teleradiology reporting ,B3 2RT,
Families & Specialist Services,Radiology,30/09/2022,Contractual Clinical Services,Rad General,Telemedicine Clinic Ltd,20220382,"119,879.21 ",Outsourcing of teleradiology reporting ,B3 2RT,
Recharges,Recharges,07/09/2022,Healthcare From NHS Trusts,Recharges,The Leeds Teaching Hospitals NHS Trust,1410194728,"244,184.58 ",Various services provided by agreement as per West Yorkshire Association of Acute Trusts agreed methodology,LS9 7TF,
Balance Sheet,Fixed Assets,01/10/2022,Additions - Assets Under Construction,Capital (Estates),The Together Group Construction Ltd,2879,"142,918.99 ",CHILD DEVELOPMENT UNIT - REFURBISHMENT OF THE CLOCK HOUSE TO CREATE A CHILD DEVELOPMENT UNIT - AS PER CONTRACT REF  - INCLUDE FURTHER REVIEWS TO VALUE ENGINEER THE PROJECT,LS22 5DZ,
Families & Specialist Services,Radiology,07/09/2022,Healthcare From Independent Sector,Ultrasound,This Is My: Ultrasound Services Ltd,INV-1068,"27,270.00 ",Ultrasound services for July 909 scans @ £30 each = £27270,LS11 5QN,
CHS Estates,L2 Estates,23/09/2022,Gas,Estates Operations,TotalEnergies Gas & Power Ltd,275526806/22,"447,156.25 ",Mains Gas Calderdale,RH1 1RX,
Balance Sheet,L2 Current Assets,30/09/2022,Other Debtors < One Year,Other Debtors,Tuskerdirect Ltd,64311,"130,959.24 ",Salary Sacrifice cars,WD18 8YF,
Balance Sheet,Fixed Assets,30/09/2022,Additions - Assets Under Construction,Capital (His),Vyaire UK 236 Ltd,31251768RI,"34,465.20 ",Vyair Medical: Consulting analysis and design deliverables and services. Sentry connect implementation setup fee. Training CIS. Sentry connect seat license,RG24 8NA,
Corporate Services,Finance,09/09/2022,Audit Fees : Internal,Finance,York and Scarborough Teaching Hospitals NHS Foundation Trust,1010085308,"37,714.00 ",INTERNAL AUDIT CHARGES INCLUDES COUNTER FRAUD DAYS,YO30 4RY,
